bitfinex-derivatives/quotes_SOLF0:USTF0_20250202
["timestamp","ask_amount","ask_price","bid_price","bid_amount"]
[1738528004469,4.8655,205.58,205.57,0.03106424]
[1738528004869,4.54,205.6,205.52,5.8791]
[1738528005672,0.03580876,205.61,205.52,5.8791]
[1738528005871,4.54,205.69,205.53,3.1534]
[1738528006067,4.8631,205.68,205.57,4.8657]
[1738528006366,4.54,205.69,205.58,3.0587]
[1738528006964,0.03449531,205.66,205.61,0.03459218]
[1738528007467,0.03449531,205.66,205.62,4.8645]
[1738528007764,0.03449531,205.66,205.61,0.03459218]
[1738528008971,4.864,205.64,205.61,0.03459218]
[1738528009172,39.52439606,205.62,205.53,3.1534]
[1738528010472,0.03220381,205.6,205.55,0.03252055]
[1738528011072,0.03220381,205.6,205.47,3.0263]
[1738528011073,39.52439606,205.58,205.32,129.05797369]
[1738528011373,39.52439606,205.5,205.4,4.8697]
[1738528011669,48.93099606,205.54,205.42,4.8692]
[1738528011974,44.06439606,205.54,205.36,8.9142]
[1738528012163,0.03678776,205.5,205.46,0.03643628]
[1738528014574,39.56118382,205.5,205.46,0.03643628]
[1738528015377,4.8678,205.49,205.46,0.03643628]
[1738528016079,39.56118382,205.5,205.46,0.03643628]
[1738528016278,4.8681,205.47,205.46,0.03643628]
[1738528016477,39.56118382,205.5,205.46,0.03643628]
[1738528016776,4.8678,205.49,205.46,0.03643628]
[1738528016976,39.56118382,205.5,205.46,0.03643628]
[1738528017378,44.42858382,205.5,205.46,0.03643628]
[1738528018073,39.56118382,205.5,205.46,0.03643628]
[1738528018268,0.03678776,205.5,205.46,0.03643628]
[1738528018576,44.06439606,205.59,205.46,0.03643628]
[1738528018979,39.52439606,205.63,205.46,39.52439606]
[1738528019173,39.52439606,205.63,205.47,9.0772]
[1738528019477,44.38879606,205.63,205.52,4.8667]
[1738528019820,0.03697694,205.57,205.53,0.03406741]
[1738528019980,39.52439606,205.63,205.53,0.03406741]
[1738528020577,39.52439606,205.68,205.55,4.8661]
[1738528020775,39.52439606,205.68,205.53,0.03406741]
[1738528020976,39.52439606,205.68,205.47,9.0772]
[1738528021175,0.036262,205.63,205.58,0.03157414]
[1738528021379,39.52439606,205.72,205.58,0.03157414]
[1738528021677,39.52439606,205.72,205.5,39.52439606]
[1738528022069,4.8627,205.7,205.5,39.52439606]
[1738528022270,39.52439606,205.72,205.5,39.52439606]
[1738528022470,39.52439606,205.76,205.58,0.03139506]
[1738528022669,39.52439606,205.76,205.58,39.55579112]
[1738528022871,39.52439606,205.76,205.59,5.9995]
[1738528023074,4.8619,205.74,205.64,4.864]
[1738528023278,4.8619,205.74,205.59,5.9995]
[1738528023680,0.03270979,205.69,205.64,0.031531]
[1738528023876,4.8616,205.75,205.66,4.8635]
[1738528024072,39.52439606,205.76,205.59,5.9995]
[1738528025097,39.52439606,205.84,205.72,4.8619]
[1738528025278,39.52439606,205.84,205.73,5.9995]
[1738528025673,4.8599,205.82,205.74,4.8616]
[1738528026285,0.03136627,205.8,205.76,0.03143928]
[1738528026680,39.52439606,205.88,205.76,0.03143928]
[1738528026979,39.52439606,205.88,205.74,2.8821]
[1738528027677,39.52439606,205.84,205.74,2.8821]
[1738528027878,0.03676659,205.83,205.79,0.03569681]
[1738528028080,4.858,205.9,205.81,4.8599]
[1738528028286,39.52439606,205.88,205.74,2.8821]
[1738528028683,4.8592,205.85,205.75,4.8614]
[1738528028982,39.52439606,205.88,205.74,2.8821]
[1738528029183,0.03717042,205.82,205.78,0.03331503]
[1738528029785,44.38299606,205.88,205.79,4.8605]
[1738528029982,39.52439606,205.92,205.78,0.03331503]
[1738528030283,4.54,205.95,205.74,42.40649606]
[1738528030479,39.52439606,205.96,205.74,42.40649606]
[1738528030878,39.52439606,205.92,205.74,42.40649606]
[1738528031081,0.03293098,205.87,205.83,0.03140064]
[1738528032478,39.52439606,206.0,205.83,0.03140064]
[1738528032687,39.52439606,206.0,205.82,39.52439606]
[1738528032981,4.8569,205.95,205.78,39.52439606]
[1738528033181,39.52439606,206.0,205.78,39.52439606]
[1738528033380,39.52439606,205.96,205.78,39.52439606]
[1738528033604,0.0326098,205.91,205.87,0.03547485]
[1738528034786,4.8579,205.9,205.87,0.03547485]
[1738528035288,0.0326098,205.91,205.87,0.03547485]
[1738528035727,44.38279606,205.88,205.87,0.03547485]
[1738528035884,39.52439606,205.88,205.79,6.3018]
[1738528036082,39.52439606,205.92,205.79,6.3018]
[1738528036286,4.8564,205.97,205.88,4.8582]
[1738528036486,39.52439606,206.0,205.82,39.52439606]
[1738528036888,0.03276805,205.93,205.89,0.03285529]
[1738528038488,44.38199606,205.92,205.89,0.03285529]
[1738528038692,39.52439606,205.92,205.89,0.03285529]
[1738528039485,4.8579,205.91,205.89,0.03285529]
[1738528039882,39.52439606,205.92,205.8,2.913]
[1738528040086,4.8589,205.86,205.8,2.913]
[1738528040283,39.52439606,205.88,205.8,2.913]
[1738528040794,39.52439606,205.92,205.8,2.913]
[1738528041192,0.03693212,205.88,205.84,0.03661955]
[1738528041588,39.56132818,205.88,205.75,3.1149]
[1738528041795,39.52439606,205.83,205.67,5.9233]
[1738528042125,4.8602,205.81,205.7,4.8626]
[1738528042493,39.52439606,205.83,205.67,5.9233]
[1738528042685,0.03575012,205.77,205.73,0.0328381]
[1738528044264,4.89675012,205.77,205.73,0.0328381]
[1738528044392,0.03575012,205.77,205.73,0.0328381]
[1738528044692,5.0437,205.91,205.73,0.0328381]
[1738528045092,5.0437,205.91,205.7,39.52439606]
[1738528045292,39.52439606,205.84,205.67,5.9233]
[1738528045690,39.52439606,205.84,205.67,10.7864]
[1738528045891,0.03584773,205.78,205.73,0.03339048]
[1738528046426,4.8617,205.74,205.73,0.03339048]
[1738528047498,4.8627,205.7,205.63,3.1149]
[1738528047895,4.8629,205.69,205.63,3.1149]
[1738528048600,0.03577946,205.68,205.64,0.0306111]
[1738528048800,4.8634,205.67,205.64,0.0306111]
[1738528048997,0.03577946,205.68,205.64,0.0306111]
[1738528049999,39.56017552,205.68,205.64,0.0306111]
[1738528050802,4.8636,205.66,205.64,0.0306111]
[1738528051099,39.56017552,205.68,205.55,5.9091]
[1738528051304,0.5309,205.67,205.55,5.9091]
[1738528051499,39.52439606,205.64,205.55,5.9091]
[1738528052204,0.03185072,205.62,205.57,0.03287168]
[1738528052703,39.52439606,205.74,205.57,0.03287168]
[1738528053007,44.04439606,205.74,205.55,5.9091]
[1738528053397,4.8621,205.73,205.62,4.8644]
[1738528053606,4.8621,205.73,205.56,39.52439606]
[1738528053905,53.77515394,205.93,205.69,4.8627]
[1738528053906,4.8606,205.79,205.69,4.8627]
[1738528054509,0.03211155,205.76,205.72,0.03631808]
[1738528055108,4.52,205.84,205.72,0.03631808]
[1738528055310,4.8593,205.84,205.74,4.8616]
[1738528055504,39.52439606,205.87,205.72,0.03631808]
[1738528055710,39.52439606,205.87,205.69,5.8713]
[1738528055936,4.8591,205.85,205.75,4.8614]
[1738528056110,4.8591,205.85,205.69,5.8713]
[1738528056410,0.03476261,205.82,205.78,0.03114687]
[1738528058510,0.03476261,205.82,205.69,5.8713]
[1738528058907,39.52439606,205.83,205.69,5.8713]
[1738528059128,4.8605,205.79,205.69,5.8713]
[1738528059506,0.5674,205.88,205.69,5.8713]
[1738528059710,39.52439606,205.75,205.72,0.03311455]
[1738528060013,39.52439606,205.75,205.63,2.8825]
[1738528061012,4.8622,205.72,205.63,2.8825]
[1738528061224,0.03220912,205.71,205.67,0.03168689]
[1738528061614,39.55660518,205.71,205.58,2.9276]
[1738528061814,39.52439606,205.67,205.57,3.0259]
[1738528062010,4.864,205.64,205.53,4.8666]
[1738528062405,39.52439606,205.67,205.51,5.9535]
[1738528062606,4.8648,205.61,205.51,10.8204]
[1738528063114,4.89846008,205.61,205.57,0.03404188]
[1738528063334,0.03366008,205.61,205.57,0.03404188]
[1738528063515,4.865,205.6,205.57,0.03404188]
[1738528063815,0.03366008,205.61,205.57,0.03404188]
[1738528065744,4.8653,205.59,205.57,0.03404188]
[1738528066214,0.03366008,205.61,205.57,0.03404188]
[1738528067214,4.89866008,205.61,205.57,0.03404188]
[1738528067918,0.03366008,205.61,205.57,0.03404188]
[1738528068315,39.55805614,205.61,205.4,39.52439606]
[1738528068514,39.52439606,205.57,205.38,9.0658]
[1738528068825,39.52439606,205.53,205.38,9.0658]
[1738528069016,4.8674,205.5,205.4,4.8696]
[1738528069515,0.03248833,205.47,205.43,0.03190206]
[1738528072042,39.52439606,205.45,205.33,96.32]
[1738528072208,39.52439606,205.45,205.27,12.2056]
[1738528072715,39.52439606,205.41,205.27,12.2056]
[1738528073113,0.03322138,205.36,205.32,0.03616317]
[1738528075417,4.90402138,205.36,205.32,0.03616317]
[1738528076321,0.03322138,205.36,205.32,0.03616317]
[1738528077519,4.872,205.31,205.21,4.8742]
[1738528078413,39.52439606,205.33,205.2,2.9801]
[1738528078612,0.03082709,205.28,205.24,0.03676173]
[1738528081719,0.03082709,205.28,205.26,4.873]
[1738528082119,0.03082709,205.28,205.24,0.03676173]
[1738528082120,4.873,205.26,205.24,0.03676173]
[1738528082418,39.55522315,205.28,205.06,6.0158]
[1738528082618,39.52439606,205.24,205.06,12.0391]
[1738528083017,4.52,205.23,205.06,12.0391]
[1738528083217,4.8752,205.17,205.09,4.8768]
[1738528083418,0.03345424,205.17,205.12,0.03535524]
[1738528083627,39.52439606,205.16,205.12,0.03535524]
[1738528083815,4.8761,205.14,205.12,0.03535524]
[1738528084020,39.52439606,205.16,205.12,0.03535524]
[1738528084318,39.52439606,205.16,205.02,6.0521]
[1738528084712,39.52439606,205.2,205.02,6.0521]
[1738528084919,39.52439606,205.2,205.09,4.8768]
[1738528085112,39.52439606,205.2,205.02,6.0521]
[1738528085519,0.03466058,205.17,205.12,0.0352681]
[1738528085762,39.52439606,205.15,204.86,233.1113566]
[1738528085918,39.52439606,205.04,204.93,6.0521]
[1738528086122,39.52439606,205.04,204.93,10.9329]
[1738528086325,39.52439606,205.04,204.93,6.0521]
[1738528086518,39.52439606,205.08,204.98,4.8796]
[1738528086723,44.04439606,205.08,204.98,4.8796]
[1738528087020,0.03264174,205.05,205.01,0.03447634]
[1738528087324,39.52439606,205.12,204.93,6.0521]
[1738528087523,0.97494394,205.14,204.93,6.0521]
[1738528087524,0.03443286,205.05,205.01,0.03306781]
[1738528087823,39.52439606,205.08,204.93,6.0521]
[1738528088025,0.03122061,205.05,205.01,0.03586621]
[1738528089228,39.52439606,205.04,205.01,0.03586621]
[1738528090029,44.40279606,205.04,204.91,6.1846]
[1738528090519,4.52,205.11,204.91,3.1228]
[1738528090520,39.52439606,205.0,204.91,3.1228]
[1738528091146,0.03492038,204.98,204.91,3.1228]
[1738528091729,0.03492038,204.98,204.91,8.0041]
[1738528092026,0.03492038,204.98,204.91,3.1228]
[1738528092427,0.03492038,204.98,204.94,4.8806]
[1738528092624,0.03492038,204.98,204.91,3.1228]
[1738528092827,39.52439606,204.97,204.91,3.1228]
[1738528093020,39.52439606,204.97,204.85,6.1511]
[1738528093528,0.03202963,204.93,204.85,6.1511]
[1738528093835,39.52439606,205.01,204.89,4.8816]
[1738528094029,39.52439606,205.01,204.85,6.1511]
[1738528094226,39.52439606,204.97,204.85,6.1511]
[1738528094425,4.8804,204.96,204.86,4.8824]
[1738528094622,39.52439606,204.97,204.85,6.1511]
[1738528095027,0.03435133,204.93,204.89,0.03227028]
[1738528095630,39.52439606,205.01,204.89,0.03227028]
[1738528095831,44.40339606,205.01,204.93,4.8807]
[1738528096033,39.52439606,205.01,204.93,4.8807]
[1738528096729,4.52,205.08,204.9,39.52439606]
[1738528096940,0.03461593,204.99,204.95,0.03670049]
[1738528097237,4.52,205.08,205.01,4.8787]
[1738528097580,4.52,205.08,204.9,39.52439606]
[1738528097833,39.52439606,205.09,204.9,39.52439606]
[1738528098232,44.40159606,205.09,204.9,39.52439606]
[1738528098536,5.156e-05,205.02,204.97,0.03462264]
[1738528098934,4.8759,205.14,205.07,4.8773]
[1738528099132,4.52,205.18,204.95,2.9886]
[1738528099437,39.52439606,205.26,205.06,39.52439606]
[1738528099633,0.0744,205.36,205.14,39.52439606]
[1738528099832,4.8726,205.28,205.19,4.8745]
[1738528100134,0.03288601,205.27,205.23,0.033577]
[1738528100626,0.03474169,205.27,205.23,0.03603346]
[1738528101033,0.03474169,205.27,205.07,6.2458]
[1738528101034,4.8741,205.22,205.11,4.8765]
[1738528101336,39.52439606,205.25,205.07,6.2458]
[1738528101634,39.52439606,205.21,205.07,6.2458]
[1738528101936,4.875,205.18,205.07,11.1232]
[1738528102131,39.52439606,205.17,205.07,6.2458]
[1738528102325,0.03530355,205.15,205.1,0.03610552]
[1738528107537,29.15,205.36,205.1,0.03610552]
[1738528107538,39.52439606,205.3,205.1,0.03610552]
[1738528107739,39.52439606,205.26,205.1,8.89080552]
[1738528108040,39.52439606,205.26,205.1,8.8547]
[1738528108542,0.03647046,205.2,205.16,0.03240354]
[1738528111843,0.03647046,205.2,205.04,39.52439606]
[1738528112142,4.8723,205.29,205.17,4.8751]
[1738528112441,39.52439606,205.33,205.14,8.7628]
[1738528112674,4.8728,205.27,205.16,4.8754]
[1738528112845,39.52439606,205.29,205.14,11.7293]
[1738528113040,0.03593811,205.24,205.19,0.03489869]
[1738528113241,4.90943811,205.24,205.19,0.03489869]
[1738528113439,0.03593811,205.24,205.19,0.03489869]
[1738528114147,4.8738,205.23,205.19,0.03489869]
[1738528114840,0.03593811,205.24,205.07,4.8775]
[1738528114841,4.875,205.18,205.07,4.8775]
[1738528115142,39.52439606,205.25,205.06,2.9823]
[1738528115742,4.5,205.27,205.06,2.9823]
[1738528116047,0.0349172,205.19,205.14,0.03085763]
[1738528116249,0.0349172,205.19,205.06,2.9823]
[1738528116444,39.52439606,205.25,205.14,0.03566995]
[1738528116651,0.03236517,205.15,205.14,0.03566995]
[1738528116850,4.8743,205.21,205.14,0.03566995]
[1738528117050,0.03550819,205.17,205.14,0.03566995]
[1738528117245,39.52439606,205.25,205.14,0.03566995]
[1738528117443,0.03237383,205.18,205.14,0.03566995]
[1738528119549,4.8752,205.17,205.14,0.03566995]
[1738528120149,4.90737383,205.18,205.14,0.03566995]
[1738528120348,0.03237383,205.18,205.14,0.03566995]
[1738528122048,0.03237383,205.18,205.0,8.8927]
[1738528122348,4.876,205.14,205.04,4.8782]
[1738528122546,4.876,205.14,205.0,8.8927]
[1738528123346,0.03114597,205.09,205.05,4.91354458]
[1738528124384,0.03114597,205.09,205.05,0.03554458]
[1738528126347,4.8778,205.07,205.05,0.03554458]
[1738528128055,0.03114597,205.09,205.05,0.03554458]
[1738528128651,4.8778,205.06,205.05,0.03554458]
[1738528129157,0.03114597,205.09,205.05,0.03554458]
[1738528129758,4.8778,205.06,205.05,0.03554458]
[1738528129954,0.03114597,205.09,204.94,12.2794]
[1738528130157,24.6587687,205.11,204.94,12.2794]
[1738528130456,24.6587687,205.11,204.95,4.8802]
[1738528130457,4.878,205.05,204.95,4.8802]
[1738528130750,24.6587687,205.11,204.94,12.2794]
[1738528130955,4.8781,205.05,204.95,4.8802]
[1738528131152,0.03613977,205.05,204.94,12.2794]
[1738528132056,4.8785,205.04,204.94,17.16]
[1738528132459,0.03613977,205.05,204.94,17.16]
[1738528133458,4.8788,205.02,204.94,17.16]
[1738528133988,0.03472361,205.0,204.94,9.39]
[1738528134755,4.8799,204.98,204.94,9.39]
[1738528135059,0.03472361,205.0,204.94,9.39]
[1738528135259,0.03472361,205.0,204.96,4.88]
[1738528135556,0.03472361,205.0,204.95,2.9636]
[1738528135756,0.03472361,205.0,204.97,4.8798]
[1738528135955,0.03472361,205.0,204.95,2.9636]
[1738528136551,0.03472361,205.0,204.96,4.8801]
[1738528137460,0.03472361,205.0,204.95,2.9636]
[1738528137956,0.03472361,205.0,204.94,9.39]
[1738528138455,4.8799,204.98,204.94,9.39]
[1738528139155,0.03472361,205.0,204.94,9.39]
[1738528139461,32.1887687,205.11,204.94,9.39]
[1738528140358,3.03,205.11,204.94,9.39]
[1738528140559,0.03622729,205.05,205.0,0.03155407]
[1738528140759,24.6587687,205.15,204.97,24.6587687]
[1738528140959,0.03273488,205.05,205.0,0.03475801]
[1738528141156,24.6587687,205.15,204.97,24.6587687]
[1738528141462,0.03618405,205.05,205.01,4.8789]
[1738528141758,24.6587687,205.15,205.01,0.03645413]
[1738528141962,24.6587687,205.15,204.97,24.6587687]
[1738528142157,4.8778,205.07,205.06,0.03390313]
[1738528142656,4.879,205.01,204.94,9.39]
[1738528142856,24.6587687,205.07,204.94,9.39]
[1738528143160,24.6587687,205.03,204.94,3.1704]
[1738528143362,4.88,204.97,204.9,3.1489]
[1738528143559,24.6587687,205.03,204.9,3.1489]
[1738528143862,0.03663617,204.96,204.86,6.0256]
[1738528147163,0.03663617,204.96,204.92,4.8811]
[1738528147665,0.03663617,204.96,204.91,4.8812]
[1738528147965,0.03663617,204.96,204.86,6.0256]
[1738528148159,0.03663617,204.96,204.89,4.8818]
[1738528149262,0.03663617,204.96,204.86,6.0256]
[1738528150864,0.03663617,204.96,204.91,4.8813]
[1738528151258,0.03663617,204.96,204.86,6.0256]
[1738528151864,0.03663617,204.96,204.91,4.8814]
[1738528152067,0.03663617,204.96,204.86,6.0256]
[1738528153765,4.8809,204.93,204.86,6.0256]
[1738528154070,24.6587687,204.95,204.84,2.9295]
[1738528154270,0.03369831,204.92,204.84,2.9295]
[1738528154464,4.8816,204.9,204.84,2.9295]
[1738528154663,0.03369831,204.92,204.84,2.9295]
[1738528155068,4.8816,204.91,204.84,2.9295]
[1738528155269,0.03369831,204.92,204.84,2.9295]
[1738528156170,24.6587687,204.91,204.81,5.9313]
[1738528156369,24.6587687,204.91,204.77,99.6326]
[1738528156869,4.91948925,204.86,204.77,99.6326]
[1738528157384,4.8829,204.85,204.77,99.6326]
[1738528157974,4.884,204.8,204.73,8.9625]
[1738528158169,0.03668925,204.86,204.73,8.9625]
[1738528158369,24.6587687,204.87,204.73,8.9625]
[1738528158571,0.03230153,204.82,204.73,8.9625]
[1738528158772,4.884,204.81,204.73,8.9625]
[1738528159273,4.51230153,204.82,204.64,102.35724855]
[1738528159492,24.6587687,204.79,204.65,12.114]
[1738528159773,0.03495162,204.75,204.65,12.114]
[1738528159971,0.03495162,204.75,204.66,4.8873]
[1738528160677,0.03495162,204.75,204.65,36.7727687]
[1738528160974,24.6587687,204.91,204.69,24.6587687]
[1738528161181,4.883,204.85,204.76,4.8849]
[1738528161372,4.48,204.9,204.69,24.6587687]
[1738528161878,4.8828,204.85,204.69,24.6587687]
[1738528162179,0.03113404,204.82,204.77,0.03521775]
[1738528162574,0.03113404,204.82,204.69,24.6587687]
[1738528162773,0.03113404,204.82,204.77,0.03599753]
[1738528162978,24.6587687,204.8,204.77,0.03599753]
[1738528163175,24.6587687,204.8,204.65,12.114]
[1738528163375,24.6587687,204.8,204.76,0.03255075]
[1738528163570,24.6587687,204.8,204.65,12.114]
[1738528163773,0.03749679,204.75,204.66,4.8873]
[1738528163971,0.03749679,204.75,204.7,0.03564259]
[1738528165076,4.8859,204.72,204.7,0.03564259]
[1738528165279,0.03749679,204.75,204.7,0.03564259]
[1738528165579,4.8861,204.71,204.7,0.03564259]
[1738528166685,0.03749679,204.75,204.59,96.66]
[1738528166877,24.6587687,204.76,204.59,101.549]
[1738528167483,24.6587687,204.76,204.59,96.66]
[1738528167780,0.03207734,204.7,204.59,96.66]
[1738528168024,0.03207734,204.7,204.59,101.5488]
[1738528168279,0.03207734,204.7,204.59,96.66]
[1738528168681,0.03207734,204.7,204.6,24.6587687]
[1738528169182,0.03207734,204.7,204.59,96.66]
[1738528169384,0.03207734,204.7,204.57,11.9123]
[1738528169585,24.6587687,204.73,204.57,11.9123]
[1738528169783,0.03481361,204.66,204.57,11.9123]
[1738528170282,0.03481361,204.66,204.6,4.8888]
[1738528170676,0.03481361,204.66,204.57,11.9123]
[1738528171783,4.8883,204.62,204.57,11.9123]
[1738528172086,24.6587687,204.69,204.57,11.9123]
[1738528172286,0.03463212,204.62,204.57,11.9123]
[1738528172693,0.03463212,204.62,204.49,12.0544]
[1738528172884,4.48,204.66,204.49,12.0544]
[1738528173411,0.03410668,204.58,204.49,12.0544]
[1738528174185,24.6587687,204.57,204.49,8.8716]
[1738528174685,0.03410668,204.58,204.49,8.8716]
[1738528174884,4.92360668,204.58,204.49,8.8716]
[1738528175185,0.03410668,204.58,204.49,8.8716]
[1738528175391,24.6587687,204.53,204.43,8.7014]
[1738528175792,4.48,204.54,204.43,8.7014]
[1738528176098,0.03355153,204.5,204.35,77.69847985]
[1738528176385,4.48,204.54,204.36,11.7047]
[1738528176895,0.03373018,204.45,204.36,11.7047]
[1738528177192,4.48,204.54,204.36,11.7047]
[1738528177794,4.8907,204.52,204.42,4.8929]
[1738528178195,0.03344512,204.49,204.45,0.03257803]
[1738528180997,4.48,204.56,204.45,0.03257803]
[1738528181197,4.8894,204.58,204.45,0.03257803]
[1738528181392,29.1387687,204.61,204.45,0.03257803]
[1738528181597,29.1387687,204.61,204.42,24.6587687]
[1738528181994,0.03705002,204.54,204.49,0.03175306]
[1738528182493,0.03705002,204.54,204.49,3.12935306]
[1738528182688,0.03705002,204.54,204.5,4.8911]
[1738528182895,4.48,204.63,204.5,24.6587687]
[1738528183102,24.6587687,204.73,204.5,24.6587687]
[1738528183293,4.8871,204.67,204.5,24.6587687]
[1738528183491,4.48,204.72,204.5,24.6587687]
[1738528183792,4.8867,204.69,204.59,4.8889]
[1738528184013,4.8867,204.69,204.5,24.6587687]
[1738528184014,4.48,204.72,204.6,6.2096]
[1738528184194,0.03352169,204.63,204.6,6.2096]
[1738528184392,4.48,204.72,204.6,6.2096]
[1738528184601,4.48,204.72,204.61,3.1642]
[1738528185696,4.91952507,204.69,204.64,0.03077194]
[1738528186108,0.03292507,204.69,204.64,0.03077194]
[1738528186301,4.887,204.68,204.64,0.03077194]
[1738528186599,0.03292507,204.69,204.64,0.03077194]
[1738528187000,4.91962507,204.69,204.64,0.03077194]
[1738528187402,0.03292507,204.69,204.64,0.03077194]
[1738528187999,24.6587687,204.68,204.38,24.6587687]
[1738528188296,24.6587687,204.71,204.39,24.6587687]
[1738528188297,24.6587687,204.62,204.39,24.6587687]
[1738528188501,29.5470687,204.62,204.5,4.891]
[1738528188705,29.5470687,204.62,204.51,3.1598]
[1738528188998,4.888,204.64,204.53,4.8904]
[1738528189198,0.03429527,204.59,204.54,0.03091972]
[1738528189802,0.97718278,204.67,204.54,2.98991972]
[1738528190192,0.97718278,204.67,204.54,2.959]
[1738528190403,24.6587687,204.62,204.54,2.959]
[1738528190703,24.6587687,204.58,204.52,6.228]
[1738528190900,4.8902,204.54,204.52,6.228]
[1738528191303,24.6587687,204.53,204.51,0.03248305]
[1738528191804,29.5492687,204.53,204.51,0.03248305]
[1738528191999,24.6587687,204.53,204.51,0.03248305]
[1738528192405,0.03437155,204.55,204.51,0.03248305]
[1738528195007,24.6587687,204.57,204.51,0.03248305]
[1738528195206,4.8892,204.58,204.51,0.03248305]
[1738528195709,4.8892,204.58,204.51,3.04948305]
[1738528195904,24.6587687,204.61,204.51,3.04948305]
[1738528195905,0.03382584,204.57,204.51,3.04948305]
[1738528196105,4.8898,204.56,204.51,3.04948305]
[1738528196308,0.03382584,204.57,204.51,3.04948305]
[1738528196808,4.8897,204.56,204.51,3.04948305]
[1738528198307,24.6587687,204.61,204.51,3.04948305]
[1738528198510,0.97718278,204.67,204.51,3.04948305]
[1738528198703,0.97718278,204.67,204.59,4.8889]
[1738528199008,4.48,204.73,204.6,6.3336]
[1738528199509,0.03337855,204.68,204.63,0.03535304]
[1738528200009,24.6587687,204.75,204.63,0.03535304]
[1738528200414,4.8849,204.77,204.68,4.8867]
[1738528200607,24.6587687,204.7,204.61,2.999]
[1738528201009,4.8873,204.67,204.61,2.999]
[1738528201208,0.0317986,204.68,204.63,0.03484957]
[1738528201403,24.6587687,204.78,204.63,0.03484957]
[1738528201703,24.6587687,204.78,204.67,4.8871]
[1738528202103,4.8869,204.68,204.61,2.999]
[1738528202308,24.6587687,204.7,204.61,2.999]
[1738528202705,0.0350118,204.68,204.63,0.03321656]
[1738528203117,4.8871,204.67,204.63,0.03321656]
[1738528203312,0.0350118,204.68,204.63,0.03321656]
[1738528203809,24.6587687,204.74,204.63,0.03321656]
[1738528204613,24.6587687,204.82,204.63,24.69198526]
[1738528204811,24.6587687,204.82,204.63,24.6587687]
[1738528205012,6.074e-05,204.75,204.7,0.03671321]
[1738528205211,6.074e-05,204.75,204.67,24.6587687]
[1738528205414,24.6587687,204.86,204.67,24.6587687]
[1738528205612,4.8828,204.85,204.67,24.6587687]
[1738528205815,24.6587687,204.86,204.67,24.6587687]
[1738528206314,0.03219939,204.79,204.74,0.03144534]
[1738528206521,4.46,204.89,204.74,0.03144534]
[1738528206713,4.883,204.84,204.77,4.8846]
[1738528206914,4.46,204.93,204.71,24.6587687]
[1738528207114,4.46,204.93,204.75,24.6587687]
[1738528207334,4.8813,204.92,204.84,4.883]
[1738528207618,4.46,205.05,204.85,3.185]
[1738528207813,4.8789,205.02,204.92,4.881]
[1738528208014,2.8907,205.07,204.86,0.0325319]
[1738528208319,2.8907,205.07,204.85,3.185]
[1738528208320,24.6587687,204.95,204.85,3.185]
[1738528208711,40.15587194,204.96,204.88,0.03415039]
[1738528208911,40.15587194,205.0,204.88,0.03415039]
[1738528209116,0.0323496,204.92,204.86,3.0551]
[1738528209815,0.0323496,204.92,204.87,0.03502516]
[1738528211319,40.15587194,205.05,204.87,0.03502516]
[1738528211721,4.8807,204.94,204.87,6.204]
[1738528211919,40.15587194,204.97,204.87,6.204]
[1738528212219,40.15587194,205.04,204.87,6.204]
[1738528212420,4.8794,205.0,204.91,4.8813]
[1738528212617,0.03101916,204.94,204.9,0.0321105]
[1738528212821,40.15587194,205.04,204.9,0.0321105]
[1738528213021,40.15587194,205.04,204.87,6.204]
[1738528213421,40.15587194,205.0,204.87,6.204]
[1738528213621,4.8802,204.97,204.88,4.882]
[1738528213818,40.15587194,205.0,204.87,6.204]
[1738528214018,0.03119277,204.95,204.9,0.03084693]
[1738528214823,40.15587194,205.12,204.93,40.15587194]
[1738528215019,40.15587194,205.12,204.9,0.03084693]
[1738528215020,40.15587194,205.08,204.9,0.03084693]
[1738528215223,40.15587194,205.08,204.87,6.204]
[1738528215420,4.8787,205.03,204.93,4.8808]
[1738528215623,40.15587194,205.08,204.87,6.204]
[1738528215819,40.15587194,205.03,204.96,0.0370788]
[1738528216325,4.8789,205.02,204.97,0.03713368]
[1738528216524,40.15587194,205.03,204.97,0.03713368]
[1738528216822,4.8789,205.02,204.97,0.03713368]
[1738528217022,40.15587194,205.03,204.97,0.03713368]
[1738528217618,4.879,205.01,204.97,0.03713368]
[1738528217814,0.9336,205.06,204.97,0.03713368]